[Event "Betsys MČR v online bleskovém šachu 2021"]
[Site "Chess.com"]
[Date "2021.04.17"]
[Round "2"]
[White "marecek1754"]
[Black "mayerrs"]
[Result "0-1"]
[WhiteElo "2199"]
[BlackElo "1900"]
[TimeControl "180+1"]
[EndTime "9:18:22 PDT"]
[Termination "Uživatel mayerrs zvítězil na čas"]

1. e4 {[%clk 0:02:57.7]} 1... g6 {[%clk 0:02:58.8]} 2. d4 {[%clk 0:02:57.1]}
2... Bg7 {[%clk 0:02:59.3]} 3. Nc3 {[%clk 0:02:53.1]} 3... b6 {[%clk 0:02:59.2]}
4. g3 {[%clk 0:02:48.8]} 4... Bb7 {[%clk 0:02:58.3]} 5. Bg2 {[%clk 0:02:49.7]}
5... e6 {[%clk 0:02:58.1]} 6. Nge2 {[%clk 0:02:47.7]} 6... Ne7 {[%clk
0:02:58.2]} 7. Be3 {[%clk 0:02:46.2]} 7... a6 {[%clk 0:02:55.8]} 8. Qd2 {[%clk
0:02:44.7]} 8... d5 {[%clk 0:02:56.1]} 9. e5 {[%clk 0:02:44.4]} 9... h5 {[%clk
0:02:55.5]} 10. h3 {[%clk 0:02:42.9]} 10... Nd7 {[%clk 0:02:55.1]} 11. f4 {[%clk
0:02:42.5]} 11... c5 {[%clk 0:02:54.7]} 12. Nd1 {[%clk 0:02:42.1]} 12... c4
{[%clk 0:02:50.3]} 13. c3 {[%clk 0:02:42.4]} 13... b5 {[%clk 0:02:50.7]} 14. g4
{[%clk 0:02:27.4]} 14... hxg4 {[%clk 0:02:47.6]} 15. hxg4 {[%clk 0:02:27.4]}
15... Rxh1+ {[%clk 0:02:44.4]} 16. Bxh1 {[%clk 0:02:28.3]} 16... Qb6 {[%clk
0:02:41.7]} 17. Nf2 {[%clk 0:02:22.7]} 17... a5 {[%clk 0:02:40.9]} 18. Ng3
{[%clk 0:02:15.4]} 18... b4 {[%clk 0:02:36.2]} 19. Nh3 {[%clk 0:01:30.8]} 19...
b3 {[%clk 0:02:11.8]} 20. a3 {[%clk 0:01:28.5]} 20... a4 {[%clk 0:02:11.4]} 21.
Ng5 {[%clk 0:01:20.4]} 21... Bh6 {[%clk 0:02:02]} 22. f5 {[%clk 0:01:05.3]}
22... exf5 {[%clk 0:01:57.8]} 23. gxf5 {[%clk 0:00:37]} 23... gxf5 {[%clk
0:01:48.9]} 24. O-O-O {[%clk 0:00:27.4]} 24... Qg6 {[%clk 0:01:33.7]} 25. Bf3
{[%clk 0:00:18.8]} 25... O-O-O {[%clk 0:01:24.5]} 26. Rh1 {[%clk 0:00:17.7]}
26... Rg8 {[%clk 0:01:13.4]} 27. Bh5 {[%clk 0:00:17.6]} 27... Qg7 {[%clk
0:01:02.4]} 28. Nxf7 {[%clk 0:00:16.5]} 28... Bxe3 {[%clk 0:00:58.6]} 29. Qxe3
{[%clk 0:00:14.2]} 29... Qxg3 {[%clk 0:00:58.2]} 30. Nd6+ {[%clk 0:00:14]} 30...
Kb8 {[%clk 0:00:54.7]} 31. Bf3 {[%clk 0:00:14.9]} 31... f4 {[%clk 0:00:47.6]}
32. Qe2 {[%clk 0:00:15]} 32... Ng6 {[%clk 0:00:39.7]} 33. Nxb7 {[%clk
0:00:14.8]} 33... Kxb7 {[%clk 0:00:39.4]} 34. Bxd5+ {[%clk 0:00:15.1]} 34... Kb6
{[%clk 0:00:32.8]} 35. Bxg8 {[%clk 0:00:16]} 35... f3 {[%clk 0:00:28]} 36. Qxc4
{[%clk 0:00:14.9]} 36... Qf4+ {[%clk 0:00:21.4]} 37. Kb1 {[%clk 0:00:14.3]}
37... Qe4+ {[%clk 0:00:16.3]} 38. Ka1 {[%clk 0:00:13.3]} 38... f2 {[%clk
0:00:17.2]} 39. Qf1 {[%clk 0:00:08.9]} 39... Nf4 {[%clk 0:00:12.2]} 40. Bc4
{[%clk 0:00:07.9]} 40... Nf8 {[%clk 0:00:04.3]} 41. e6 {[%clk 0:00:06.9]} 41...
N8g6 {[%clk 0:00:04.2]} 42. e7 {[%clk 0:00:06.7]} 42... Nxe7 {[%clk 0:00:04.3]}
43. Bb5 {[%clk 0:00:05]} 43... Neg6 {[%clk 0:00:03.8]} 44. c4 {[%clk 0:00:03.7]}
44... Qxd4 {[%clk 0:00:03.2]} 45. c5+ {[%clk 0:00:02.1]} 45... Qxc5 {[%clk
0:00:03.6]} 46. Bd3 {[%clk 0:00:02.4]} 46... Qe3 {[%clk 0:00:03.4]} 47. Bxg6
{[%clk 0:00:02.1]} 47... Nxg6 {[%clk 0:00:03.2]} 48. Qd1 {[%clk 0:00:01.8]}
48... Nf4 {[%clk 0:00:03.5]} 49. Rf1 {[%clk 0:00:01.6]} 49... Nd3 {[%clk
0:00:02.3]} 0-1

[Event "Betsys MČR v online bleskovém šachu 2021"]
[Site "Chess.com"]
[Date "2021.04.17"]
[Round "2"]
[White "Drak1961"]
[Black "FutureFideMasseur"]
[Result "1-0"]
[WhiteElo "2099"]
[BlackElo "2432"]
[TimeControl "180+1"]
[EndTime "9:18:23 PDT"]
[Termination "Uživatel Drak1961 zvítězil po vzdání soupeře"]

1. d4 {[%clk 0:02:58.5]} 1... Nf6 {[%clk 0:02:59.4]} 2. Nf3 {[%clk 0:02:57.9]}
2... d5 {[%clk 0:02:58.6]} 3. g3 {[%clk 0:02:57.4]} 3... e6 {[%clk 0:02:58.4]}
4. Bg2 {[%clk 0:02:57.1]} 4... Be7 {[%clk 0:02:58.9]} 5. O-O {[%clk 0:02:56.8]}
5... O-O {[%clk 0:02:59.5]} 6. b3 {[%clk 0:02:52.8]} 6... b6 {[%clk 0:02:59]} 7.
c4 {[%clk 0:02:51.4]} 7... Bb7 {[%clk 0:02:59.3]} 8. Ne5 {[%clk 0:02:50.2]} 8...
Nbd7 {[%clk 0:02:57.8]} 9. Nc3 {[%clk 0:02:47.7]} 9... c5 {[%clk 0:02:49.9]} 10.
e3 {[%clk 0:02:42.8]} 10... a6 {[%clk 0:02:45.6]} 11. Bb2 {[%clk 0:02:39.7]}
11... Qc7 {[%clk 0:02:34.3]} 12. Qe2 {[%clk 0:02:18.8]} 12... dxc4 {[%clk
0:02:21.1]} 13. Bxb7 {[%clk 0:02:08.7]} 13... Qxb7 {[%clk 0:02:21.1]} 14. Nxd7
{[%clk 0:02:01.7]} 14... Qxd7 {[%clk 0:02:17.3]} 15. bxc4 {[%clk 0:01:55.2]}
15... cxd4 {[%clk 0:02:01.6]} 16. exd4 {[%clk 0:01:54.9]} 16... Rac8 {[%clk
0:02:00.5]} 17. Rac1 {[%clk 0:01:39.3]} 17... Qxd4 {[%clk 0:01:17.9]} 18. Nd5
{[%clk 0:01:35.6]} 18... Qc5 {[%clk 0:01:18]} 19. Nxf6+ {[%clk 0:01:13.3]} 19...
Bxf6 {[%clk 0:01:16.6]} 20. Bxf6 {[%clk 0:01:11.5]} 20... gxf6 {[%clk
0:01:17.5]} 21. Rfd1 {[%clk 0:01:05.1]} 21... Rfd8 {[%clk 0:01:15.8]} 22. Qg4+
{[%clk 0:00:56.4]} 22... Qg5 {[%clk 0:01:15]} 23. Rxd8+ {[%clk 0:00:35.1]} 23...
Rxd8 {[%clk 0:01:14.4]} 24. Qxg5+ {[%clk 0:00:33.2]} 24... fxg5 {[%clk
0:01:15.3]} 25. Rb1 {[%clk 0:00:32.5]} 25... Rd6 {[%clk 0:01:13.2]} 26. Kf1
{[%clk 0:00:29.9]} 26... Kf8 {[%clk 0:01:13.4]} 27. Ke2 {[%clk 0:00:29]} 27...
Ke7 {[%clk 0:01:13.7]} 28. Ke3 {[%clk 0:00:29.1]} 28... Kd7 {[%clk 0:01:08.3]}
29. h4 {[%clk 0:00:21.7]} 29... h6 {[%clk 0:00:59.8]} 30. hxg5 {[%clk
0:00:21.2]} 30... hxg5 {[%clk 0:01:00.7]} 31. Rh1 {[%clk 0:00:20.5]} 31... Kc6
{[%clk 0:01:00]} 32. Rh5 {[%clk 0:00:18.6]} 32... g4 {[%clk 0:00:53.5]} 33. Rg5
{[%clk 0:00:18.2]} 33... f5 {[%clk 0:00:53.1]} 34. Rg6 {[%clk 0:00:17.9]} 34...
Kc5 {[%clk 0:00:52.8]} 35. f3 {[%clk 0:00:14.9]} 35... gxf3 {[%clk 0:00:52.1]}
36. Kxf3 {[%clk 0:00:15]} 36... Kxc4 {[%clk 0:00:51.8]} 37. Rg8 {[%clk 0:00:15]}
37... e5 {[%clk 0:00:46.2]} 38. Rc8+ {[%clk 0:00:14.4]} 38... Kd3 {[%clk
0:00:44.1]} 39. Re8 {[%clk 0:00:13.2]} 39... e4+ {[%clk 0:00:43.7]} 40. Kf4
{[%clk 0:00:12.5]} 40... Rd5 {[%clk 0:00:40.6]} 41. Re6 {[%clk 0:00:11.8]} 41...
e3 {[%clk 0:00:31.7]} 42. Rxe3+ {[%clk 0:00:10.3]} 42... Kc4 {[%clk 0:00:25.6]}
43. Re6 {[%clk 0:00:09.7]} 43... Kb5 {[%clk 0:00:23.4]} 44. Re5 {[%clk 0:00:06]}
44... Rxe5 {[%clk 0:00:18.9]} 45. Kxe5 {[%clk 0:00:06]} 45... Ka4 {[%clk
0:00:17]} 46. Kxf5 {[%clk 0:00:06.1]} 46... Ka3 {[%clk 0:00:16.2]} 47. g4 {[%clk
0:00:06.3]} 47... Kxa2 {[%clk 0:00:16.6]} 48. g5 {[%clk 0:00:06.6]} 48... b5
{[%clk 0:00:17.1]} 49. g6 {[%clk 0:00:06.8]} 49... b4 {[%clk 0:00:17.6]} 50. g7
{[%clk 0:00:06.8]} 50... a5 {[%clk 0:00:17.7]} 51. g8=Q+ {[%clk 0:00:06]} 51...
b3 {[%clk 0:00:18]} 52. Ke4 {[%clk 0:00:05.8]} 52... a4 {[%clk 0:00:18.3]} 53.
Kd3 {[%clk 0:00:05.8]} 53... Kb2 {[%clk 0:00:15.7]} 54. Qg2+ {[%clk 0:00:04.1]}
54... Ka3 {[%clk 0:00:15]} 55. Kc3 {[%clk 0:00:04.1]} 1-0

[Event "Betsys MČR v online bleskovém šachu 2021"]
[Site "Chess.com"]
[Date "2021.04.17"]
[Round "2"]
[White "vikysachy"]
[Black "Bagr92"]
[Result "0-1"]
[WhiteElo "852"]
[BlackElo "1596"]
[TimeControl "180+1"]
[EndTime "9:18:25 PDT"]
[Termination "Uživatel Bagr92 zvítězil matem"]

1. e4 {[%clk 0:03:00.9]} 1... c5 {[%clk 0:02:59.6]} 2. Nf3 {[%clk 0:02:59]} 2...
e6 {[%clk 0:03:00.5]} 3. Nc3 {[%clk 0:02:57.9]} 3... d6 {[%clk 0:03:00.2]} 4.
Bc4 {[%clk 0:02:57.5]} 4... Nc6 {[%clk 0:03:01.1]} 5. d3 {[%clk 0:02:54.8]} 5...
Nf6 {[%clk 0:02:59.5]} 6. Qe2 {[%clk 0:02:54.6]} 6... Be7 {[%clk 0:02:59.7]} 7.
Bf4 {[%clk 0:02:54.2]} 7... O-O {[%clk 0:02:58.9]} 8. O-O-O {[%clk 0:02:53.6]}
8... a6 {[%clk 0:02:59]} 9. h4 {[%clk 0:02:52.5]} 9... b5 {[%clk 0:02:59]} 10.
Bb3 {[%clk 0:02:51.1]} 10... Qb6 {[%clk 0:02:58.8]} 11. h5 {[%clk 0:02:49.1]}
11... a5 {[%clk 0:02:58.8]} 12. h6 {[%clk 0:02:47.7]} 12... g6 {[%clk
0:02:55.9]} 13. Ng5 {[%clk 0:02:39.7]} 13... a4 {[%clk 0:02:47.6]} 14. Bxe6
{[%clk 0:02:38.7]} 14... Bxe6 {[%clk 0:02:43.7]} 15. a3 {[%clk 0:02:38.3]} 15...
b4 {[%clk 0:02:42.3]} 16. Nxa4 {[%clk 0:02:36.3]} 16... Rxa4 {[%clk 0:02:38.7]}
17. axb4 {[%clk 0:02:35.3]} 17... Qxb4 {[%clk 0:02:29.9]} 18. c3 {[%clk
0:02:27.2]} 18... Qb3 {[%clk 0:02:27.4]} 19. Kd2 {[%clk 0:02:20.8]} 19... Qxb2+
{[%clk 0:02:25.9]} 20. Ke1 {[%clk 0:02:20]} 20... Qxc3+ {[%clk 0:02:11.3]} 21.
Bd2 {[%clk 0:02:16.6]} 21... Qb2 {[%clk 0:01:53.2]} 22. Kf1 {[%clk 0:01:55.2]}
22... Ra1 {[%clk 0:01:49.5]} 23. Kg1 {[%clk 0:01:50.8]} 23... Nd4 {[%clk
0:01:42.4]} 24. Qe1 {[%clk 0:01:48.1]} 24... Rxd1 {[%clk 0:01:27.3]} 25. Qxd1
{[%clk 0:01:42.2]} 25... Bb3 {[%clk 0:01:24.5]} 26. Qe1 {[%clk 0:01:35.6]} 26...
Ne6 {[%clk 0:01:00.8]} 27. Nf3 {[%clk 0:01:32.2]} 27... Qc2 {[%clk 0:00:47.1]}
28. Kh2 {[%clk 0:01:28.8]} 28... Qxd3 {[%clk 0:00:41.3]} 29. Rf1 {[%clk
0:01:17.7]} 29... d5 {[%clk 0:00:28.4]} 30. e5 {[%clk 0:01:14.7]} 30... Ng4+
{[%clk 0:00:27]} 31. Kg1 {[%clk 0:01:13.7]} 31... d4 {[%clk 0:00:19.4]} 32. g3
{[%clk 0:01:09.4]} 32... Bd5 {[%clk 0:00:19.3]} 33. Bc1 {[%clk 0:00:56.6]} 33...
Qxf3 {[%clk 0:00:19]} 34. Qe4 {[%clk 0:00:40.9]} 34... Qg2+ {[%clk 0:00:19.9]}
35. Qxg2 {[%clk 0:00:39.5]} 35... Bxg2 {[%clk 0:00:20.8]} 36. Kxg2 {[%clk
0:00:39.1]} 36... f6 {[%clk 0:00:20.3]} 37. exf6 {[%clk 0:00:37.9]} 37... Bxf6
{[%clk 0:00:20.3]} 38. Kh3 {[%clk 0:00:32.4]} 38... Ne5 {[%clk 0:00:19.3]} 39.
Kg2 {[%clk 0:00:26.9]} 39... c4 {[%clk 0:00:18.3]} 40. Ba3 {[%clk 0:00:23.9]}
40... Ra8 {[%clk 0:00:17.3]} 41. Bb2 {[%clk 0:00:21.7]} 41... c3 {[%clk
0:00:17.1]} 42. Bxc3 {[%clk 0:00:21.2]} 42... dxc3 {[%clk 0:00:17]} 43. Rc1
{[%clk 0:00:21.1]} 43... Rc8 {[%clk 0:00:17.1]} 44. Kf1 {[%clk 0:00:18.5]} 44...
c2 {[%clk 0:00:18]} 45. Ke1 {[%clk 0:00:18]} 45... Nd4 {[%clk 0:00:18.6]} 46.
Kd2 {[%clk 0:00:17.7]} 46... Nc4+ {[%clk 0:00:15.3]} 47. Kd3 {[%clk 0:00:17.1]}
47... Nb2+ {[%clk 0:00:14.1]} 48. Kd2 {[%clk 0:00:13.7]} 48... Nb3+ {[%clk
0:00:13.8]} 49. Ke1 {[%clk 0:00:10.5]} 49... Nxc1 {[%clk 0:00:14.7]} 50. Kf1
{[%clk 0:00:10.6]} 50... Nb3 {[%clk 0:00:15.5]} 51. Ke2 {[%clk 0:00:10.9]} 51...
c1=Q {[%clk 0:00:15]} 52. Kf3 {[%clk 0:00:10.9]} 52... Rc3+ {[%clk 0:00:14.1]}
53. Kg2 {[%clk 0:00:10.8]} 53... Nd3 {[%clk 0:00:12.4]} 54. Kh3 {[%clk
0:00:10.7]} 54... Ne1 {[%clk 0:00:13.3]} 55. Kg4 {[%clk 0:00:10.9]} 55... Qc2
{[%clk 0:00:12.1]} 56. Kf4 {[%clk 0:00:11]} 56... Qf5# {[%clk 0:00:13]} 0-1

[Event "Betsys MČR v online bleskovém šachu 2021"]
[Site "Chess.com"]
[Date "2021.04.17"]
[Round "2"]
[White "jsulc"]
[Black "berny643"]
[Result "0-1"]
[WhiteElo "2072"]
[BlackElo "2532"]
[TimeControl "180+1"]
[EndTime "9:18:28 PDT"]
[Termination "Uživatel berny643 zvítězil na čas"]

1. d4 {[%clk 0:03:00.9]} 1... Nf6 {[%clk 0:02:57.6]} 2. c4 {[%clk 0:02:58.1]}
2... e6 {[%clk 0:02:57.9]} 3. Nc3 {[%clk 0:02:56.8]} 3... Bb4 {[%clk 0:02:58.3]}
4. g3 {[%clk 0:02:56.9]} 4... c5 {[%clk 0:02:50]} 5. Nf3 {[%clk 0:02:31.8]} 5...
cxd4 {[%clk 0:02:45.3]} 6. Nxd4 {[%clk 0:02:28.4]} 6... Nc6 {[%clk 0:02:45.9]}
7. Bg2 {[%clk 0:02:23.2]} 7... Qa5 {[%clk 0:02:36.4]} 8. Nb5 {[%clk 0:02:16.2]}
8... a6 {[%clk 0:02:28.1]} 9. Nd6+ {[%clk 0:02:12.5]} 9... Ke7 {[%clk
0:02:27.5]} 10. Bd2 {[%clk 0:01:39.1]} 10... Bxd6 {[%clk 0:01:27.8]} 11. Nd5+
{[%clk 0:01:34.3]} 11... exd5 {[%clk 0:01:28.7]} 12. Bxa5 {[%clk 0:01:33]} 12...
Nxa5 {[%clk 0:01:29.6]} 13. Bxd5 {[%clk 0:01:28.7]} 13... Re8 {[%clk 0:01:20.1]}
14. O-O {[%clk 0:01:27.8]} 14... Nc6 {[%clk 0:01:10.1]} 15. Bxf7 {[%clk
0:01:19.7]} 15... Kxf7 {[%clk 0:01:06]} 16. Qxd6 {[%clk 0:01:19.4]} 16... Re6
{[%clk 0:00:53]} 17. Qd2 {[%clk 0:00:55.6]} 17... d6 {[%clk 0:00:51.7]} 18. f3
{[%clk 0:00:46.7]} 18... Bd7 {[%clk 0:00:46.9]} 19. e4 {[%clk 0:00:46.2]} 19...
Ne5 {[%clk 0:00:46.6]} 20. b3 {[%clk 0:00:44.8]} 20... b5 {[%clk 0:00:41.2]} 21.
cxb5 {[%clk 0:00:41.1]} 21... Bxb5 {[%clk 0:00:38.4]} 22. Rf2 {[%clk 0:00:38]}
22... Rd8 {[%clk 0:00:35]} 23. Kg2 {[%clk 0:00:36.6]} 23... d5 {[%clk
0:00:32.5]} 24. Rd1 {[%clk 0:00:30.5]} 24... Rd7 {[%clk 0:00:30.5]} 25. a4
{[%clk 0:00:21.1]} 25... Bd3 {[%clk 0:00:25.8]} 26. exd5 {[%clk 0:00:16.8]}
26... Rxd5 {[%clk 0:00:23.4]} 27. Qf4 {[%clk 0:00:13.9]} 27... Red6 {[%clk
0:00:21]} 28. Rfd2 {[%clk 0:00:13.8]} 28... Kg8 {[%clk 0:00:18.6]} 29. Qe3
{[%clk 0:00:13.3]} 29... Kf7 {[%clk 0:00:15.3]} 30. f4 {[%clk 0:00:13.5]} 30...
Neg4 {[%clk 0:00:12.1]} 31. Qa7+ {[%clk 0:00:11.8]} 31... Rd7 {[%clk 0:00:10.5]}
32. Qb6 {[%clk 0:00:09.7]} 32... Be4+ {[%clk 0:00:09.9]} 33. Kf1 {[%clk
0:00:08.4]} 33... Rxd2 {[%clk 0:00:10.8]} 34. Rxd2 {[%clk 0:00:08.5]} 34... Rxd2
{[%clk 0:00:11]} 35. Qb4 {[%clk 0:00:08.5]} 35... Rf2+ {[%clk 0:00:08.7]} 36.
Ke1 {[%clk 0:00:07.9]} 36... Bf3 {[%clk 0:00:08.6]} 37. Qc4+ {[%clk 0:00:07.8]}
37... Kg6 {[%clk 0:00:07.4]} 38. Qd3+ {[%clk 0:00:07.2]} 38... Be4 {[%clk
0:00:07.5]} 39. Qd6 {[%clk 0:00:06.7]} 39... Ne3 {[%clk 0:00:07.3]} 40. f5+
{[%clk 0:00:05.1]} 40... Rxf5 {[%clk 0:00:06.7]} 41. Qd4 {[%clk 0:00:04.6]}
41... Rf1+ {[%clk 0:00:04.3]} 42. Ke2 {[%clk 0:00:04.7]} 42... Rf5 {[%clk
0:00:04.3]} 43. Kxe3 {[%clk 0:00:04.4]} 43... Rf3+ {[%clk 0:00:04.3]} 44. Ke2
{[%clk 0:00:04.2]} 44... Rxb3 {[%clk 0:00:05.2]} 45. Qe5 {[%clk 0:00:03.6]}
45... Rb2+ {[%clk 0:00:05.7]} 46. Ke3 {[%clk 0:00:03.4]} 46... Rb3+ {[%clk
0:00:05.3]} 47. Kd4 {[%clk 0:00:02.5]} 47... Ra3 {[%clk 0:00:05.9]} 48. Qa5
{[%clk 0:00:01.3]} 48... Ra1 {[%clk 0:00:05.7]} 49. Qxa6 {[%clk 0:00:01.5]}
49... Rd1+ {[%clk 0:00:06.2]} 50. Ke3 {[%clk 0:00:01.6]} 50... Re1+ {[%clk
0:00:06.7]} 51. Kf2 {[%clk 0:00:01.7]} 51... Rh1 {[%clk 0:00:07.3]} 52. h4
{[%clk 0:00:01.2]} 52... Rh2+ {[%clk 0:00:07.6]} 53. Ke3 {[%clk 0:00:01.2]}
53... Rg2 {[%clk 0:00:08.4]} 54. Kf4 {[%clk 0:00:01.3]} 54... Rf2+ {[%clk
0:00:08.5]} 0-1

[Event "Betsys MČR v online bleskovém šachu 2021"]
[Site "Chess.com"]
[Date "2021.04.17"]
[Round "2"]
[White "Dvacetsekund"]
[Black "CZMaster666"]
[Result "1-0"]
[WhiteElo "2196"]
[BlackElo "1862"]
[TimeControl "180+1"]
[EndTime "9:18:30 PDT"]
[Termination "Uživatel Dvacetsekund zvítězil matem"]

1. e4 {[%clk 0:03:00.9]} 1... e5 {[%clk 0:02:59.4]} 2. Nf3 {[%clk 0:03:00.3]}
2... Nc6 {[%clk 0:02:59.7]} 3. Bc4 {[%clk 0:03:00.1]} 3... Nf6 {[%clk 0:03:00]}
4. d3 {[%clk 0:02:59.9]} 4... Be7 {[%clk 0:02:59.8]} 5. O-O {[%clk 0:02:58.9]}
5... O-O {[%clk 0:03:00.4]} 6. Re1 {[%clk 0:02:57.6]} 6... d6 {[%clk 0:02:53.7]}
7. a4 {[%clk 0:02:56.8]} 7... Na5 {[%clk 0:02:49.3]} 8. Ba2 {[%clk 0:02:54.2]}
8... c5 {[%clk 0:02:49.8]} 9. c3 {[%clk 0:02:47.3]} 9... Nc6 {[%clk 0:02:41.1]}
10. Na3 {[%clk 0:02:42.2]} 10... Kh8 {[%clk 0:02:38.7]} 11. Nc2 {[%clk
0:02:28.8]} 11... Ng8 {[%clk 0:02:37.7]} 12. d4 {[%clk 0:02:23.4]} 12... Qc7
{[%clk 0:02:36.7]} 13. dxe5 {[%clk 0:02:08]} 13... dxe5 {[%clk 0:02:35.4]} 14.
Bg5 {[%clk 0:02:04.1]} 14... Be6 {[%clk 0:02:16.4]} 15. Bxe7 {[%clk 0:01:35.6]}
15... Ngxe7 {[%clk 0:02:14.4]} 16. Ne3 {[%clk 0:01:31]} 16... Bxa2 {[%clk
0:02:09.5]} 17. Rxa2 {[%clk 0:01:31.3]} 17... f6 {[%clk 0:02:10.1]} 18. Qb3
{[%clk 0:01:18.9]} 18... Rad8 {[%clk 0:02:00.6]} 19. Raa1 {[%clk 0:01:17.5]}
19... Na5 {[%clk 0:01:43]} 20. Qc2 {[%clk 0:01:16.3]} 20... c4 {[%clk
0:01:35.9]} 21. Rad1 {[%clk 0:01:12.9]} 21... Qc5 {[%clk 0:00:43.7]} 22. Rxd8
{[%clk 0:01:01.2]} 22... Rxd8 {[%clk 0:00:44.6]} 23. Rd1 {[%clk 0:01:01]} 23...
Rd6 {[%clk 0:00:29.5]} 24. h4 {[%clk 0:00:54.3]} 24... h6 {[%clk 0:00:23.9]} 25.
g3 {[%clk 0:00:51.9]} 25... Kg8 {[%clk 0:00:23.6]} 26. Kg2 {[%clk 0:00:51.7]}
26... Kf7 {[%clk 0:00:23.2]} 27. h5 {[%clk 0:00:49.7]} 27... Ke6 {[%clk
0:00:20.3]} 28. Nh4 {[%clk 0:00:37.7]} 28... Rxd1 {[%clk 0:00:17.1]} 29. Qxd1
{[%clk 0:00:36.9]} 29... Qd6 {[%clk 0:00:17.7]} 30. Qg4+ {[%clk 0:00:33.5]}
30... Kf7 {[%clk 0:00:17.3]} 31. Nhf5 {[%clk 0:00:21.8]} 31... Nxf5 {[%clk
0:00:17.1]} 32. Qg6+ {[%clk 0:00:20.6]} 32... Kg8 {[%clk 0:00:12.7]} 33. Nxf5
{[%clk 0:00:12.9]} 33... Qf8 {[%clk 0:00:13]} 34. Nxh6+ {[%clk 0:00:12.5]} 34...
Kh8 {[%clk 0:00:13]} 35. Nf7+ {[%clk 0:00:10.7]} 35... Kg8 {[%clk 0:00:12.9]}
36. Nh6+ {[%clk 0:00:10]} 36... Kh8 {[%clk 0:00:13.3]} 37. Nf5 {[%clk
0:00:10.1]} 37... Nc6 {[%clk 0:00:12.5]} 38. h6 {[%clk 0:00:10.3]} 38... gxh6
{[%clk 0:00:12.2]} 39. Nxh6 {[%clk 0:00:09.1]} 39... Ne7 {[%clk 0:00:12.3]} 40.
Qh5 {[%clk 0:00:09]} 40... Qg7 {[%clk 0:00:10.5]} 41. Nf5+ {[%clk 0:00:07.5]}
41... Qh7 {[%clk 0:00:09.5]} 42. Qxh7+ {[%clk 0:00:07.3]} 42... Kxh7 {[%clk
0:00:09.4]} 43. Nxe7 {[%clk 0:00:08.1]} 43... Kg7 {[%clk 0:00:09.4]} 44. Nd5
{[%clk 0:00:08.7]} 44... Kf7 {[%clk 0:00:10.3]} 45. Kf3 {[%clk 0:00:09.1]} 45...
Ke6 {[%clk 0:00:10.6]} 46. Ke3 {[%clk 0:00:09.7]} 46... f5 {[%clk 0:00:11]} 47.
f3 {[%clk 0:00:10.3]} 47... f4+ {[%clk 0:00:11.1]} 48. gxf4 {[%clk 0:00:10.6]}
48... exf4+ {[%clk 0:00:12]} 49. Kxf4 {[%clk 0:00:11.3]} 49... Kd6 {[%clk
0:00:12.4]} 50. Ke3 {[%clk 0:00:12.2]} 50... Kc5 {[%clk 0:00:13.3]} 51. f4
{[%clk 0:00:12.4]} 51... a6 {[%clk 0:00:13.8]} 52. f5 {[%clk 0:00:12.4]} 52...
b5 {[%clk 0:00:14.7]} 53. axb5 {[%clk 0:00:12.3]} 53... axb5 {[%clk 0:00:15.6]}
54. f6 {[%clk 0:00:12.8]} 54... Kd6 {[%clk 0:00:15.9]} 55. Kd4 {[%clk
0:00:12.7]} 55... Ke6 {[%clk 0:00:15.7]} 56. f7 {[%clk 0:00:12.1]} 56... Kxf7
{[%clk 0:00:15.6]} 57. Kc5 {[%clk 0:00:12.8]} 57... Ke6 {[%clk 0:00:16.5]} 58.
Kxb5 {[%clk 0:00:13.4]} 58... Ke5 {[%clk 0:00:17.4]} 59. Kxc4 {[%clk 0:00:14.3]}
59... Kxe4 {[%clk 0:00:18.3]} 60. b4 {[%clk 0:00:14.2]} 60... Ke5 {[%clk
0:00:19.2]} 61. Kc5 {[%clk 0:00:14.8]} 61... Ke6 {[%clk 0:00:19.4]} 62. Kc6
{[%clk 0:00:15.3]} 62... Ke5 {[%clk 0:00:19.2]} 63. b5 {[%clk 0:00:16.2]} 63...
Ke4 {[%clk 0:00:19.9]} 64. b6 {[%clk 0:00:17.1]} 64... Kd3 {[%clk 0:00:20.8]}
65. b7 {[%clk 0:00:18]} 65... Kc4 {[%clk 0:00:20.8]} 66. b8=Q {[%clk 0:00:18.9]}
66... Kd3 {[%clk 0:00:21.3]} 67. Qe5 {[%clk 0:00:18.5]} 67... Kc2 {[%clk
0:00:22.2]} 68. Qe3 {[%clk 0:00:18.2]} 68... Kb3 {[%clk 0:00:23.1]} 69. c4+
{[%clk 0:00:18.3]} 69... Kxc4 {[%clk 0:00:24]} 70. Qc3# {[%clk 0:00:17.8]} 1-0